fUSD/lending_fUSD_20240519
["ID","MTS","AMOUNT","RATE_DAILY","PERIOD"]
[327491721,1716124251948,-410.44610876,0.00026645,2]
[327491722,1716124251959,-243.9766075,0.00026645,2]
[327491723,1716124251968,-514.97626757,0.00026645,2]
[327491724,1716124251977,-557.15568993,0.00026645,2]
[327491725,1716124251986,-151.0,0.00026645,7]
[327491726,1716124251995,-151.0,0.00026645,7]
[327491727,1716124252005,-500.0,0.00026645,2]
[327491728,1716124252014,-379.98746684,0.00026645,2]
[327491729,1716124252418,-120.01253316,0.00026645,2]
[327491730,1716124252427,-151.0,0.00026645,7]
[327491731,1716124252437,-151.0,0.00026645,7]
[327491732,1716124252446,-515.06441144,0.00026645,2]
[327491733,1716124252456,-500.0,0.00026645,2]
[327491734,1716124252465,-500.0,0.00026645,2]
[327491735,1716124252474,-151.0,0.00026645,7]
[327491736,1716124252483,-151.0,0.00026645,7]
[327491737,1716124252492,-500.0,0.00026645,2]
[327491738,1716124252501,-502.07,0.00026645,2]
[327491739,1716124252512,-304.73,0.00026645,2]
[327491740,1716124252522,-500.0,0.00026645,2]
[327491741,1716124252532,-500.0,0.00026645,2]
[327491742,1716124252542,-500.0,0.00026645,2]
[327491743,1716124252551,-500.0,0.00026645,2]
[327491744,1716124252560,-171.9782343,0.00026645,2]
[327491745,1716124252572,-328.0217657,0.00026645,2]
[327491746,1716124252581,-500.0,0.00026645,2]
[327491747,1716124252591,-496.27485868,0.00026645,2]
[327491748,1716124252602,-3.72514132,0.00026645,2]
[327491749,1716124252611,-500.0,0.00026645,2]
[327491750,1716124252620,-97.29085468,0.00026645,2]
[327491751,1716124252631,-346.11167018,0.00026645,2]
[327491752,1716124252642,-139.59314205,0.00026645,2]
[327491753,1716124252651,-148.50965063,0.00026645,2]
[327491754,1716124252666,-351.49034937,0.00026645,2]
[327491755,1716124252675,-520.33619845,0.00026645,2]
[327491756,1716124252685,-500.0,0.00026645,2]
[327491757,1716124252694,-500.0,0.00026645,2]
[327491758,1716124252703,-578.2656324,0.00026645,2]
[327491759,1716124252713,-500.0,0.00026645,2]
[327491760,1716124252722,-500.0,0.00026645,2]
[327491761,1716124252731,-500.0,0.00026645,2]
[327491762,1716124252740,-500.0,0.00026645,2]
[327491763,1716124252750,-261.0950077,0.00026645,2]
[327491764,1716124252759,-500.0,0.00026645,2]
[327491765,1716124252768,-500.0,0.00026645,2]
[327491766,1716124252778,-237.267181,0.00026645,7]
[327491767,1716124252791,-500.0,0.00026645,2]
[327491768,1716124252801,-237.267181,0.00026645,7]
[327491769,1716124252810,-151.85282,0.00026645,7]
[327491770,1716124252819,-455.27853275,0.00026645,2]
[327491771,1716124252847,-44.72146725,0.00026645,2]
[327491772,1716124252857,-237.267181,0.00026645,7]
[327491773,1716124252867,-60.22498066,0.00026645,7]
[327491774,1716124253244,-177.04220034,0.00026645,7]
[327491775,1716124253254,-500.0,0.00026645,2]
[327491776,1716124253263,-500.0,0.00026645,2]
[327491777,1716124253273,-500.0,0.00026645,2]
[327491778,1716124253284,-500.0,0.00026645,2]
[327491779,1716124253293,-500.0,0.00026645,2]
[327491780,1716124253303,-500.0,0.00026645,2]
[327491781,1716124253311,-500.0,0.00026645,2]
[327491782,1716124253321,-500.0,0.00026645,2]
[327491783,1716124253330,-500.0,0.00026645,2]
[327491784,1716124253340,-500.0,0.00026645,2]
[327491785,1716124253349,-528.38245458,0.00026645,2]
[327491786,1716124253359,-1.80598646,0.00026645,2]
[327491787,1716124253375,-498.19401354,0.00026645,2]
[327491788,1716124253385,-500.0,0.00026645,2]
[327491789,1716124253395,-201.07598646,0.00026645,2]
[327491790,1716124253408,-298.92401354,0.00026645,2]
[327491791,1716124253417,-500.0,0.00026645,2]
[327491792,1716124253426,-500.0,0.00026645,2]
[327491793,1716124253436,-151.0,0.00026645,7]
[327491794,1716124253447,-151.0,0.00026645,7]
[327491795,1716124253457,-119.01901407,0.00026645,7]
[327491796,1716124253469,-31.98098593,0.00026645,7]
[327491797,1716124253479,-500.0,0.00026645,2]
[327491798,1716124253488,-500.0,0.00026645,2]
[327491799,1716124253498,-518.78992334,0.00026645,2]
[327491800,1716124253508,-151.0,0.00026645,7]
[327491801,1716124253518,-500.0,0.00026645,2]
[327491802,1716124253528,-371.62909073,0.00026645,2]
[327491803,1716124278571,643.32897965,0.00017259,2]
[327491832,1716124558696,266.29978993,0.00017259,2]
[327491833,1716124560689,5273.71009095,0.00017259,2]
[327491845,1716125204866,3060.81810638,0.00017259,2]
[327491847,1716125226941,194.99367427,0.00017259,2]
[327491848,1716125229131,155.0,0.00017259,2]
[327491851,1716125249281,643.32897965,0.00017259,2]
[327491869,1716125402679,150.0,0.00017259,2]
[327491870,1716125402905,150.0,0.00017259,2]
[327491871,1716125403108,150.0,0.00017259,2]
[327491872,1716125404223,150.82864206,0.00017259,2]
[327491877,1716125432378,-150.0,0.00019724,2]
[327491878,1716125432388,-797.10835574,0.00019725,2]
[327491879,1716125433799,-985.14132927,0.00019725,2]
[327491880,1716125433811,-2745.48019999,0.00019725,2]
[327491881,1716125433822,-2880.36659732,0.00019725,2]
[327491882,1716125433833,-4822.69,0.00019725,2]
[327491883,1716125433845,-31074.59048002,0.00019725,2]
[327491884,1716125433854,-1103.33259888,0.0002025,2]
[327491885,1716125433863,-938.92,0.00021511,2]
[327491886,1716125433873,-1798.65,0.00021696,2]
[327491887,1716125433882,-210.0,0.00021696,2]
[327491888,1716125433892,-152.89424695,0.00022567,2]
[327491889,1716125433901,-153.42116949,0.0002287,2]
[327491890,1716125433911,-156.77241488,0.00022983,2]
[327491891,1716125433921,-223.99,0.00023023,2]
[327491892,1716125433930,-250.0,0.00023118,2]
[327491893,1716125433940,-989.68,0.0002321,2]
[327491894,1716125433949,-250.0,0.00023238,2]
[327491895,1716125433958,-743.67,0.00023374,2]
[327491896,1716125433968,-180.35,0.00023403,2]
[327491897,1716125433977,-155.0,0.00023613,2]
[327491898,1716125433986,-721.65512522,0.00023681,7]
[327491899,1716125433996,-930.22,0.00023693,2]
[327491900,1716125434005,-938.92,0.00023775,2]
[327491901,1716125434016,-156.99,0.00024283,2]
[327491902,1716125434026,-24008.46879651,0.00024899,2]
[327491903,1716125434035,-169.10928245,0.00024899,2]
[327491904,1716125434045,-322.03836439,0.00024899,2]
[327491905,1716125434054,-306.0,0.000249,2]
[327491906,1716125434063,-155.9581075,0.00024915,2]
[327491907,1716125434073,-882.99402716,0.00024997,2]
[327491909,1716125434082,-155.0,0.00024997,2]
[327491910,1716125434091,-258.73981469,0.00024997,2]
[327491912,1716125434101,-200.87999732,0.00024997,2]
[327491914,1716125434110,-167.8287192,0.00024997,2]
[327491917,1716125434119,-4741.84351629,0.00024997,2]
[327491918,1716125434128,-656.27275998,0.00024997,2]
[327491920,1716125434138,-155.0,0.00024997,2]
[327491922,1716125434150,-817.97346777,0.00024997,2]
[327491924,1716125434161,-1247.992726,0.00024997,2]
[327491925,1716125434170,-2000.09259381,0.00024997,2]
[327491926,1716125434179,-3089.166756,0.00024997,2]
[327491927,1716125434189,-7514.47016042,0.00024997,2]
[327491928,1716125434199,-3059.52207804,0.00024997,2]
[327491929,1716125434209,-156.77241488,0.00024997,2]
[327491930,1716125434219,-194.4869091,0.00024997,2]
[327491931,1716125434228,-155.0,0.00024997,2]
[327491932,1716125434239,-680.26317945,0.00024997,2]
[327491933,1716125434249,-623.222624,0.00024998,2]
[327491934,1716125434260,-184.35445517,0.00024998,2]
[327491935,1716125434269,-5266.27921247,0.00024998,2]
[327491936,1716125434278,-657.56,0.00024998,2]
[327491937,1716125434288,-506.18,0.00024998,2]
[327491938,1716125434297,-500.0,0.00024998,2]
[327491939,1716125434306,-500.0,0.00024998,2]
[327491940,1716125434315,-500.0,0.00024998,2]
[327491941,1716125434325,-500.0,0.00024998,2]
[327491942,1716125434334,-879.12,0.00024998,2]
[327491943,1716125434344,-671.24,0.00024998,2]
[327491944,1716125434353,-500.0,0.00024998,2]
[327491945,1716125434363,-609.43,0.00024998,2]
[327491946,1716125434372,-500.0,0.00024998,2]
[327491947,1716125434381,-2500.45,0.00024998,2]
[327491948,1716125434390,-500.0,0.00024998,2]
[327491949,1716125434399,-500.0,0.00024998,2]
[327491950,1716125434409,-843.99,0.00024998,2]
[327491951,1716125434418,-500.0,0.00024998,2]
[327491952,1716125434427,-500.0,0.00024998,2]
[327491953,1716125434437,-500.0,0.00024998,2]
[327491954,1716125434446,-568.61,0.00024998,2]
[327491955,1716125434455,-817.19,0.00024998,2]
[327491956,1716125434465,-500.0,0.00024998,2]
[327491957,1716125434474,-854.39,0.00024998,2]
[327491958,1716125434484,-666.0,0.00024998,2]
[327491959,1716125434493,-500.0,0.00024998,2]
[327491960,1716125434503,-637.12,0.00024998,2]
[327491961,1716125434513,-857.61,0.00024998,2]
[327491962,1716125434522,-500.0,0.00024998,2]
[327491963,1716125434531,-500.0,0.00024998,2]
[327491964,1716125434540,-500.0,0.00024998,2]
[327491965,1716125434550,-518.83,0.00024998,2]
[327491966,1716125434559,-500.0,0.00024998,2]
[327491967,1716125434568,-726.23,0.00024998,2]
[327491968,1716125434577,-762.51,0.00024998,2]
[327491969,1716125434586,-500.0,0.00024998,2]
[327491970,1716125434596,-1281.27,0.00024998,2]
[327491971,1716125434605,-507.20173006,0.00024998,2]
[327491972,1716125434614,-1187.11,0.00024998,2]
[327491973,1716125434623,-820.48,0.00024998,2]
[327491974,1716125434632,-500.0,0.00024998,2]
[327491975,1716125434642,-1052.6,0.00024998,2]
[327491976,1716125434652,-763.43,0.00024998,2]
[327491977,1716125434661,-1150.72,0.00024998,2]
[327491978,1716125434670,-500.0,0.00024998,2]
[327491979,1716125434679,-3667.38,0.00024998,2]
[327491980,1716125434689,-1211.58,0.00024998,2]
[327491981,1716125434699,-986.86,0.00024998,2]
[327491982,1716125434709,-500.0,0.00024998,2]
[327491983,1716125434718,-500.0,0.00024998,2]
[327491984,1716125434728,-740.89,0.00024998,2]
[327491985,1716125434737,-533.27,0.00024998,2]
[327491986,1716125434746,-500.0,0.00024998,2]
[327491987,1716125434755,-500.0,0.00024998,2]
[327491988,1716125434765,-975.8,0.00024998,2]
[327491989,1716125434775,-1384.87,0.00024998,2]
[327491990,1716125434784,-500.0,0.00024998,2]
[327491991,1716125434793,-1006.42,0.00024998,2]
[327491992,1716125434802,-500.0,0.00024998,2]
[327491993,1716125434812,-2304.66,0.00024998,2]
[327491994,1716125434821,-2722.15,0.00024998,2]
[327491995,1716125434832,-3116.58,0.00024998,2]
[327491996,1716125434841,-500.0,0.00024998,2]
[327491997,1716125434851,-500.0,0.00024998,2]
[327491998,1716125434860,-500.0,0.00024998,2]
[327491999,1716125434870,-500.0,0.00024998,2]
[327492000,1716125434880,-942.59,0.00024998,2]
[327492001,1716125434890,-500.0,0.00024998,2]
[327492002,1716125434899,-500.0,0.00024998,2]
[327492003,1716125434909,-15816.75,0.00024998,2]
[327492004,1716125434918,-500.0,0.00024998,2]
[327492005,1716125434927,-500.0,0.00024998,2]
[327492006,1716125434936,-849.34,0.00024998,2]
[327492007,1716125434946,-500.0,0.00024998,2]
[327492008,1716125434956,-500.0,0.00024998,2]
[327492009,1716125434965,-500.0,0.00024998,2]
[327492010,1716125434974,-500.0,0.00024998,2]
[327492011,1716125434984,-500.0,0.00024998,2]
[327492012,1716125434993,-500.0,0.00024998,2]
[327492013,1716125435003,-500.0,0.00024998,2]
[327492014,1716125435013,-500.0,0.00024998,2]
[327492015,1716125435023,-500.0,0.00024998,2]
[327492016,1716125435034,-500.0,0.00024998,2]
[327492017,1716125435043,-234.42977847,0.00024998,2]
[327492018,1716125435052,-1608.23,0.00024998,2]
[327492019,1716125435062,-500.0,0.00024998,2]
[327492020,1716125435071,-500.0,0.00024998,2]
[327492021,1716125435081,-514.55084908,0.00024998,2]
[327492022,1716125435090,-500.0,0.00024998,2]
[327492023,1716125435099,-9478.72,0.00024998,2]
[327492024,1716125435109,-500.0,0.00024998,2]
[327492025,1716125435119,-500.0,0.00024999,2]
[327492026,1716125435128,-500.0,0.00024999,2]
[327492027,1716125435137,-500.0,0.00024999,2]
[327492028,1716125435148,-500.0,0.00024999,2]
[327492029,1716125435159,-500.0,0.00024999,2]
[327492030,1716125435168,-377.6,0.00024999,2]
[327492031,1716125435178,-500.0,0.00024999,2]
[327492032,1716125435189,-500.0,0.00024999,2]
[327492033,1716125435198,-500.0,0.00024999,2]
[327492034,1716125435207,-500.0,0.00024999,2]
[327492035,1716125435217,-518.82672606,0.00024999,2]
[327492036,1716125435228,-500.0,0.00024999,2]
[327492037,1716125435238,-529.29803806,0.00024999,2]
[327492038,1716125435249,-524.20972371,0.00024999,2]
[327492039,1716125435259,-500.0,0.00024999,2]
[327492040,1716125435268,-524.17503254,0.00024999,2]
[327492041,1716125435277,-500.0,0.00024999,2]
[327492042,1716125435286,-500.0,0.00024999,2]
[327492043,1716125435295,-500.0,0.00024999,2]
[327492044,1716125435305,-500.0,0.00024999,2]
[327492045,1716125435315,-500.0,0.00024999,2]
[327492046,1716125435324,-500.0,0.00024999,2]
[327492047,1716125435334,-526.59836393,0.00024999,2]
[327492048,1716125435343,-626.24,0.00024999,2]
[327492049,1716125435352,-154.19536797,0.00024999,2]
[327492050,1716125435361,-264.56099607,0.00024999,2]
[327492051,1716125435371,-281.61403198,0.00024999,2]
[327492052,1716125435381,-500.0,0.00024999,2]
[327492053,1716125435390,-500.0,0.00024999,2]
[327492054,1716125435400,-500.0,0.00024999,2]
[327492055,1716125435410,-500.0,0.00024999,2]
[327492056,1716125435420,-500.0,0.00024999,2]
[327492057,1716125435430,-500.0,0.00024999,2]
[327492058,1716125435440,-500.0,0.00024999,2]
[327492059,1716125435450,-500.0,0.00024999,2]
[327492060,1716125435460,-500.0,0.00024999,2]
[327492061,1716125435470,-403.99464816,0.00024999,2]
[327492062,1716125435479,-517.26827925,0.00024999,2]
[327492063,1716125435488,-500.0,0.00024999,2]
[327492064,1716125435498,-500.0,0.00024999,2]
[327492065,1716125435509,-500.0,0.00024999,2]
[327492066,1716125435522,-434.96673331,0.00024999,2]
[327492067,1716125435531,-508.36268871,0.00024999,2]
[327492068,1716125435540,-500.0,0.00024999,7]
[327492069,1716125435550,-637.12233626,0.00024999,2]
[327492070,1716125435560,-500.0,0.00024999,2]
[327492071,1716125435569,-500.0,0.00024999,2]
[327492072,1716125435578,-496.24731487,0.00024999,2]
[327492073,1716125435588,-500.0,0.00024999,2]
[327492074,1716125435598,-500.0,0.00024999,2]
[327492075,1716125435607,-500.0,0.00024999,2]
[327492076,1716125435617,-500.0,0.00024999,2]
[327492077,1716125435627,-505.98441816,0.00024999,2]
[327492078,1716125435636,-500.0,0.00024999,2]
[327492079,1716125435647,-507.48226951,0.00024999,2]
[327492080,1716125435656,-513.39942312,0.00024999,2]
[327492081,1716125435666,-515.32735112,0.00024999,2]
[327492082,1716125435676,-507.91644768,0.00024999,2]
[327492083,1716125435686,-500.0,0.00024999,2]
[327492084,1716125435695,-329.05436091,0.00024999,2]
[327492085,1716125435704,-500.0,0.00024999,2]
[327492086,1716125435713,-500.0,0.00024999,2]
[327492087,1716125435723,-500.0,0.00024999,2]
[327492088,1716125435732,-500.0,0.00024999,2]
[327492089,1716125435742,-500.0,0.00024999,2]
[327492090,1716125435752,-500.0,0.00024999,2]
[327492091,1716125435764,-500.0,0.00024999,2]
[327492092,1716125435774,-614.19437634,0.00024999,2]
[327492093,1716125435784,-500.0,0.00024999,2]
[327492094,1716125435795,-500.0,0.00024999,2]
[327492095,1716125435805,-607.48384065,0.00024999,2]
[327492096,1716125435815,-394.07257793,0.00024999,2]
[327492097,1716125435825,-500.0,0.00024999,2]
[327492098,1716125435834,-500.0,0.00024999,2]
[327492099,1716125435845,-311.19,0.00024999,2]
[327492100,1716125435855,-500.0,0.00024999,2]
[327492101,1716125435865,-467.01555498,0.00024999,2]
[327492102,1716125435874,-606.15,0.00024999,2]
[327492103,1716125435884,-500.0,0.00024999,2]
[327492104,1716125435894,-500.0,0.00024999,2]
[327492105,1716125435903,-500.0,0.00024999,2]
[327492106,1716125435914,-500.0,0.00024999,2]
[327492107,1716125435923,-500.0,0.00024999,2]
[327492108,1716125435933,-451.19109356,0.00024999,2]
[327492109,1716125435943,-256.85776482,0.00024999,2]
[327492110,1716125435954,-208.29299492,0.00024999,2]
[327492111,1716125435965,-500.0,0.00024999,2]
[327492112,1716125435976,-500.0,0.00024999,2]
[327492113,1716125435985,-180.44246967,0.00024999,2]
[327492114,1716125435995,-638.50031512,0.00024999,2]
[327492115,1716125436005,-501.59951858,0.00024999,2]
[327492116,1716125436016,-500.0,0.00024999,2]
[327492117,1716125436026,-500.0,0.00024999,2]
[327492118,1716125436035,-500.0,0.00024999,2]
[327492119,1716125436044,-500.0,0.00024999,2]
[327492120,1716125436054,-500.0,0.00024999,2]
[327492121,1716125436063,-538.52409138,0.00024999,2]
[327492122,1716125436073,-500.0,0.00024999,2]
[327492123,1716125436083,-500.0,0.00024999,2]
[327492124,1716125436092,-500.0,0.00024999,2]
[327492125,1716125436102,-500.0,0.00024999,2]
[327492126,1716125436112,-500.0,0.00024999,2]
[327492127,1716125436122,-500.0,0.00024999,2]
[327492128,1716125436132,-500.0,0.00024999,2]
[327492129,1716125436143,-500.0,0.00024999,2]
[327492130,1716125436158,-500.0,0.00024999,2]
[327492131,1716125436168,-510.60922215,0.00024999,2]
[327492132,1716125436178,-500.0,0.00024999,2]
[327492133,1716125436189,-500.0,0.00024999,2]
[327492134,1716125436199,-500.0,0.00024999,2]
[327492135,1716125436208,-500.0,0.00024999,2]
[327492136,1716125436218,-525.43406151,0.00024999,2]
[327492137,1716125436230,-500.0,0.00024999,2]
[327492138,1716125436239,-500.0,0.00024999,2]
[327492139,1716125436250,-500.0,0.00024999,2]
[327492140,1716125436261,-500.0,0.00024999,2]
[327492141,1716125436270,-500.0,0.00024999,2]
[327492142,1716125436280,-500.0,0.00024999,2]
[327492143,1716125436290,-500.0,0.00024999,2]
[327492144,1716125436300,-521.81139803,0.00024999,2]
[327492145,1716125436488,-500.0,0.00024999,2]
[327492146,1716125436499,-500.0,0.00024999,2]
[327492147,1716125436511,-500.0,0.00024999,2]
[327492148,1716125436520,-513.33223582,0.00024999,2]
[327492149,1716125436530,-500.0,0.00024999,2]
[327492150,1716125436539,-500.0,0.00024999,2]
[327492151,1716125436549,-500.0,0.00024999,2]
[327492152,1716125436558,-160.0,0.00024999,2]
[327492153,1716125436568,-500.0,0.00024999,2]
[327492154,1716125436578,-500.0,0.00024999,2]
[327492155,1716125436588,-500.0,0.00024999,2]
[327492156,1716125436598,-500.0,0.00024999,2]
[327492157,1716125436607,-514.26,0.00024999,2]
[327492158,1716125436617,-500.0,0.00024999,2]
[327492159,1716125436627,-500.0,0.00024999,2]
[327492160,1716125436637,-500.0,0.00024999,2]
[327492161,1716125436647,-500.0,0.00024999,2]
[327492162,1716125436657,-500.0,0.00024999,2]
[327492163,1716125436667,-517.16040345,0.00024999,2]
[327492164,1716125436676,-500.0,0.00024999,2]
[327492165,1716125436686,-528.236608,0.00024999,2]
[327492166,1716125436696,-500.0,0.00024999,2]
[327492167,1716125436706,-515.94766737,0.00024999,2]
[327492168,1716125436716,-500.0,0.00024999,2]
[327492169,1716125436726,-531.05626515,0.00024999,2]
[327492170,1716125436736,-500.0,0.00024999,2]
[327492171,1716125436746,-500.0,0.00024999,2]
[327492172,1716125436755,-500.0,0.00024999,2]
[327492173,1716125436768,-500.0,0.00024999,2]
[327492174,1716125436778,-500.0,0.00024999,2]
[327492175,1716125436788,-518.11949662,0.00024999,2]
[327492176,1716125436798,-500.0,0.00024999,2]
[327492177,1716125436808,-500.0,0.00024999,2]
[327492178,1716125436818,-500.0,0.00024999,2]
[327492179,1716125436826,-815.2,0.00024999,2]
[327492180,1716125436836,-500.0,0.00024999,2]
[327492181,1716125436847,-615.48,0.00024999,2]
[327492182,1716125436857,-500.0,0.00024999,2]
[327492183,1716125436867,-500.0,0.00024999,2]
[327492184,1716125436877,-1798.07131388,0.00024999,2]
[327492185,1716125436888,-444.1,0.00024999,2]
[327492186,1716125436898,-500.0,0.00024999,2]
[327492187,1716125436908,-500.0,0.00024999,2]
[327492188,1716125436917,-500.0,0.00024999,2]
[327492189,1716125436927,-520.24908076,0.00024999,2]
[327492190,1716125436937,-500.0,0.00024999,2]
[327492191,1716125436947,-500.0,0.00024999,2]
[327492192,1716125436957,-513.12420561,0.00024999,2]
[327492193,1716125436968,-523.86228101,0.00024999,2]
[327492194,1716125436978,-500.0,0.00024999,2]
[327492195,1716125436987,-500.0,0.00024999,2]
[327492196,1716125436997,-500.0,0.00024999,2]
[327492197,1716125437007,-500.0,0.00024999,2]
[327492198,1716125437019,-491.03490308,0.00024999,2]
[327492199,1716125437028,-500.0,0.00024999,2]
[327492200,1716125437039,-500.0,0.00024999,2]
[327492201,1716125437048,-436.48,0.00024999,2]
[327492202,1716125437058,-500.0,0.00024999,2]
[327492203,1716125437068,-500.0,0.00024999,2]
[327492204,1716125437078,-529.12890679,0.00024999,2]
[327492205,1716125437087,-500.0,0.00024999,2]
[327492206,1716125437098,-526.93797133,0.00024999,2]
[327492207,1716125437107,-500.0,0.00024999,2]
[327492208,1716125437117,-500.0,0.00024999,2]
[327492209,1716125437126,-500.0,0.00024999,2]
[327492210,1716125437135,-500.0,0.00024999,2]
[327492211,1716125437146,-500.0,0.00024999,2]
[327492212,1716125437159,-500.0,0.00024999,2]
[327492213,1716125437169,-264.24158534,0.00024999,2]
[327492214,1716125437179,-500.0,0.00024999,2]
[327492215,1716125437190,-500.0,0.00024999,2]
[327492216,1716125437199,-500.0,0.00024999,2]
[327492217,1716125437209,-500.0,0.00024999,2]
[327492218,1716125437218,-725.95,0.00024999,2]
[327492219,1716125437230,-500.0,0.00024999,2]
[327492220,1716125437240,-500.0,0.00024999,2]
[327492221,1716125437250,-500.0,0.00024999,2]
[327492222,1716125437262,-500.0,0.00024999,2]
[327492223,1716125437272,-500.0,0.00024999,2]
[327492224,1716125437281,-500.0,0.00024999,2]
[327492225,1716125437290,-500.0,0.00024999,2]
[327492226,1716125437300,-500.0,0.00024999,2]
[327492227,1716125437309,-500.0,0.00024999,2]
[327492228,1716125437319,-641.39637263,0.00024999,2]
[327492229,1716125437330,-500.0,0.00024999,2]
[327492230,1716125437340,-500.0,0.00024999,2]
[327492231,1716125437350,-500.0,0.00024999,2]
[327492232,1716125437360,-519.45888286,0.00024999,2]
[327492233,1716125437369,-526.45940487,0.00024999,2]
[327492234,1716125437379,-500.0,0.00024999,2]
[327492235,1716125437390,-500.0,0.00024999,2]
[327492236,1716125437399,-500.0,0.00024999,2]
[327492237,1716125437408,-500.0,0.00024999,2]
[327492238,1716125437417,-207.50851025,0.00024999,2]
[327492239,1716125437427,-500.0,0.00024999,2]
[327492240,1716125437436,-489.62533963,0.00024999,2]
[327492241,1716125437446,-500.0,0.00024999,2]
[327492242,1716125437455,-500.0,0.00024999,2]
[327492243,1716125437465,-500.0,0.00024999,2]
[327492244,1716125437474,-500.0,0.00024999,2]
[327492245,1716125437483,-500.0,0.00024999,2]
[327492246,1716125437493,-200.104,0.00024999,2]
[327492247,1716125437502,-569.9,0.00024999,2]
[327492248,1716125437512,-500.0,0.00024999,2]
[327492249,1716125437521,-500.0,0.00024999,2]
[327492250,1716125437530,-500.0,0.00024999,2]
[327492251,1716125437539,-500.0,0.00024999,2]
[327492252,1716125437549,-500.0,0.00024999,2]
[327492253,1716125437558,-423.0506053,0.00024999,2]
[327492254,1716125437568,-501.64050995,0.00024999,2]
[327492255,1716125437577,-500.0,0.00024999,2]
[327492256,1716125437587,-500.0,0.00024999,2]
[327492257,1716125437597,-331.34,0.00024999,2]
[327492258,1716125437607,-500.0,0.00024999,2]
[327492259,1716125437616,-500.0,0.00024999,2]
[327492260,1716125437626,-150.0,0.00024999,2]
[327492261,1716125437635,-500.0,0.00024999,2]
[327492262,1716125437645,-500.0,0.00024999,2]
[327492263,1716125437655,-500.0,0.00024999,2]
[327492264,1716125437664,-500.0,0.00024999,2]
[327492265,1716125437674,-500.0,0.00024999,2]
[327492266,1716125437684,-500.0,0.00024999,2]
[327492267,1716125437694,-500.0,0.00024999,2]
[327492268,1716125437704,-482.35272346,0.00024999,2]
[327492269,1716125437714,-500.0,0.00024999,2]
[327492270,1716125437724,-544.64195056,0.00024999,2]
[327492271,1716125437735,-500.0,0.00024999,2]
[327492272,1716125437745,-500.0,0.00024999,2]
[327492273,1716125437755,-522.03517508,0.00024999,2]
[327492274,1716125437770,-500.0,0.00024999,2]
[327492275,1716125437779,-500.0,0.00024999,2]
[327492276,1716125437789,-500.0,0.00024999,2]
[327492277,1716125437799,-988.92,0.00024999,2]
[327492278,1716125437808,-500.0,0.00024999,2]
[327492279,1716125437816,-500.0,0.00024999,2]
[327492280,1716125437826,-526.93661225,0.00024999,2]
[327492281,1716125437836,-500.0,0.00024999,2]
[327492282,1716125437846,-500.0,0.00024999,2]
[327492283,1716125437855,-512.93585477,0.00024999,2]
[327492284,1716125437865,-514.66480745,0.00024999,2]
[327492285,1716125437875,-500.0,0.00024999,2]
[327492286,1716125437885,-500.0,0.00024999,2]
[327492287,1716125437895,-510.16152598,0.00024999,2]
[327492288,1716125437904,-500.0,0.00024999,2]
[327492289,1716125437914,-500.0,0.00024999,2]
[327492290,1716125437924,-500.0,0.00024999,2]
[327492291,1716125437934,-500.0,0.00024999,2]